bitfinex/quotes_SOLUSD_20250507
["timestamp","ask_amount","ask_price","bid_price","bid_amount"]
[1746619601714,6.78058041,147.48,147.44,15.8]
[1746619603803,6.78026086,147.49,147.44,22.58233834]
[1746619604847,23.72643455,147.52,147.44,22.58233834]
[1746619605152,23.40393916,147.51,147.44,22.58233834]
[1746619605324,23.40393916,147.51,147.47,0.06781]
[1746619606547,6.77874186,147.52,147.47,0.06781]
[1746619606731,30.18268102,147.52,147.47,0.06781]
[1746619607043,6.77874186,147.52,147.47,0.06781]
[1746619607351,30.18268102,147.52,147.47,0.06781]
[1746619607724,30.1834661,147.51,147.47,0.06781]
[1746619608159,23.40393916,147.49,147.47,0.06781]
[1746619608439,23.40393916,147.5,147.47,0.06781]
[1746619609442,23.40393916,147.48,147.47,0.06781]
[1746619609947,30.18451957,147.48,147.47,0.06781]
[1746619610825,6.78058041,147.48,147.47,0.06781]
[1746619611155,30.18451957,147.48,147.47,0.06781]
[1746619611750,6.78058041,147.48,147.47,0.06781]
[1746619612645,16.94800352,147.51,147.47,0.06781]
[1746619612948,23.40393916,147.49,147.47,0.06781]
[1746619614844,6.78058041,147.48,147.47,0.06781]
[1746619615538,6.78032155,147.49,147.47,0.06781]
[1746619615743,23.40393916,147.5,147.47,0.06781]
[1746619615949,23.40393916,147.52,147.47,0.06781]
[1746619616144,184.56748128,147.53,147.47,0.06781]
[1746619616344,6.77874186,147.52,147.47,0.06781]
[1746619617642,144.47842685,147.53,147.47,0.06781]
[1746619620745,167.88236601,147.53,147.47,0.06781]
[1746619621045,6.77842685,147.53,147.47,0.06781]
[1746619621429,32.77799175,147.54,147.47,0.06781]
[1746619621632,6.77755878,147.55,147.47,0.06781]
[1746619622227,165.2651,147.56,147.47,0.06781]
[1746619622228,144.47706329,147.56,147.47,0.06781]
[1746619622532,6.77706329,147.56,147.48,18.64964886]
[1746619623455,6.77706329,147.56,147.49,6.78012068]
[1746619625046,23.71932406,147.56,147.48,32.78039015]
[1746619627164,23.66057171,147.56,147.48,32.78039015]
[1746619629263,47.06451087,147.56,147.48,32.78039015]
[1746619631670,30.18176212,147.54,147.48,32.78039015]
[1746619631967,30.18176212,147.54,147.48,6.78039015]
[1746619632175,6.77782296,147.54,147.48,6.78039015]
[1746619632381,23.40393916,147.53,147.48,6.78039015]
[1746619633069,30.18247198,147.53,147.48,6.78039015]
[1746619633771,23.40393916,147.52,147.47,0.06781]
[1746619634261,23.40393916,147.52,147.47,6.84878582]
[1746619635563,6.7773636,147.55,147.47,6.84878582]
[1746619635763,23.40393916,147.53,147.47,6.84878582]
[1746619635963,6.7773636,147.55,147.47,42.4510352]
[1746619636165,30.18130276,147.55,147.47,42.4510352]
[1746619636564,23.40393916,147.54,147.47,42.4510352]
[1746619637061,30.18130276,147.55,147.47,42.4510352]
[1746619637359,56.18106277,147.56,147.47,42.4510352]
[1746619637862,32.77712361,147.56,147.47,42.4510352]
[1746619638080,23.40393916,147.55,147.48,15.8]
[1746619638245,23.40393916,147.54,147.48,15.8]
[1746619638738,23.40393916,147.52,147.49,6.78012068]
[1746619639057,23.40393916,147.53,147.49,6.78012068]
[1746619640265,6.77706221,147.56,147.49,6.78012068]
[1746619640446,23.40393916,147.54,147.49,6.78012068]
[1746619642068,30.18144765,147.55,147.49,6.78012068]
[1746619645370,30.18084347,147.56,147.49,6.78012068]
[1746619645558,6.77690431,147.56,147.49,6.78012068]
[1746619645948,6.77652578,147.57,147.49,6.78012068]
[1746619646145,6.77607299,147.58,147.5,18.64964886]
[1746619647259,6.77323218,147.64,147.55,26.0]
[1746619647459,6.77323218,147.64,147.56,15.8]
[1746619647844,30.17717134,147.64,147.56,15.8]
[1746619648861,6.77323218,147.64,147.56,15.8]
[1746619649265,6.77323218,147.64,147.57,6.77644507]
[1746619650071,30.17717134,147.64,147.57,6.77644507]
[1746619650264,30.17717134,147.64,147.56,22.57677739]
[1746619650469,23.40393916,147.63,147.56,15.8]
[1746619650653,23.40393916,147.62,147.56,15.8]
[1746619650854,23.40393916,147.61,147.56,15.8]
[1746619651264,23.40393916,147.62,147.56,15.8]
[1746619651862,23.40393916,147.63,147.56,15.8]
[1746619653073,23.40393916,147.62,147.56,15.8]
[1746619653284,6.77460876,147.61,147.56,15.8]
[1746619654675,6.77323218,147.64,147.56,22.57679326]
[1746619656172,30.17717134,147.64,147.56,22.57679326]
[1746619660481,23.40393916,147.62,147.56,22.57679326]
[1746619660670,23.40393916,147.6,147.56,15.8]
[1746619660976,23.40393916,147.58,147.56,15.8]
[1746619662479,23.40393916,147.59,147.56,15.8]
[1746619663781,31.61753423,147.62,147.56,15.8]
[1746619664078,23.40393916,147.6,147.56,15.8]
[1746619665778,23.40393916,147.59,147.56,15.8]
[1746619665984,23.40393916,147.58,147.56,15.8]
[1746619667587,30.17975246,147.59,147.56,15.8]
[1746619668781,6.77474329,147.61,147.56,15.8]
[1746619668982,38.08589245,147.62,147.56,22.57685289]
[1746619669291,6.77323218,147.64,147.57,18.64964886]
[1746619669486,30.17717134,147.64,147.57,18.64964886]
[1746619669796,30.17717134,147.64,147.58,6.7759859]
[1746619670391,30.17717134,147.64,147.57,25.42599637]
[1746619671396,30.17717134,147.64,147.57,18.64964886]
[1746619671899,30.17717134,147.64,147.57,25.42609266]
[1746619674401,6.77323218,147.64,147.57,18.64964886]
[1746619675800,6.77277345,147.65,147.57,25.42585783]
[1746619676585,6.77277345,147.65,147.57,31.88005783]
[1746619677476,6.77277345,147.65,147.57,114.38005783]
[1746619677798,6.77231477,147.66,147.57,131.32117052]
[1746619678600,30.17625393,147.66,147.57,131.32117052]
[1746619683503,23.40393916,147.64,147.57,114.38005783]
[1746619683709,23.40393916,147.63,147.57,114.38005783]
[1746619683883,23.40393916,147.63,147.57,107.92585783]
[1746619684291,6.77231477,147.66,147.57,107.92585783]
[1746619684494,23.40393916,147.64,147.57,107.92585783]
[1746619684812,6.77369098,147.63,147.57,107.92585783]
[1746619685011,30.17739055,147.64,147.57,107.92585783]
[1746619685309,23.40393916,147.62,147.57,107.92585783]
[1746619685690,23.40393916,147.63,147.57,107.92585783]
[1746619686515,23.40393916,147.64,147.57,107.92585783]
[1746619687013,23.69989165,147.68,147.57,107.92585783]
[1746619687206,23.40393916,147.64,147.57,107.92585783]
[1746619687387,23.69989165,147.68,147.57,107.92585783]
[1746619687586,23.40393916,147.64,147.57,107.92585783]
[1746619688417,6.77323218,147.64,147.57,107.92585783]
[1746619689309,30.17687666,147.65,147.57,124.86697052]
[1746619689503,23.40393916,147.64,147.57,124.86697052]
[1746619689703,30.17687666,147.65,147.57,124.86697052]
[1746619690731,23.40393916,147.64,147.57,124.86697052]
[1746619691039,30.17533677,147.68,147.6,26.0]
[1746619691344,23.40393916,147.66,147.61,15.8]
[1746619691517,23.40393916,147.65,147.61,15.8]
[1746619691939,23.40393916,147.66,147.61,15.8]
[1746619692119,23.40393916,147.67,147.61,15.8]
[1746619692548,6.77231477,147.66,147.61,22.57429317]
[1746619694140,6.77185616,147.67,147.61,22.57429317]
[1746619694853,30.17579532,147.67,147.61,15.8]
[1746619695020,30.17579532,147.67,147.61,22.57440787]
[1746619695642,6.77185616,147.67,147.61,22.57440787]
[1746619696137,30.17636652,147.66,147.61,15.8]
[1746619696323,6.77242736,147.66,147.58,6.7759859]
[1746619696523,23.40393916,147.64,147.58,6.7759859]
[1746619697243,6.77242736,147.66,147.59,18.64964886]
[1746619698448,6.77139761,147.68,147.6,6.77506775]
[1746619698745,30.17533677,147.68,147.6,6.77506775]
[1746619700234,30.17533677,147.68,147.61,22.53424523]
[1746619700745,23.40393916,147.67,147.61,22.53424523]
[1746619703248,6.77093912,147.69,147.62,18.64964886]
[1746619705555,6.77093912,147.69,147.63,6.77369098]
[1746619709254,30.17487828,147.69,147.62,25.42357187]
[1746619712861,23.40393916,147.68,147.61,105.03441081]
[1746619714068,23.40393916,147.65,147.61,98.26]
[1746619714252,23.40393916,147.64,147.61,15.76]
[1746619715061,23.40393916,147.62,147.61,15.76]
[1746619717964,23.40393916,147.63,147.61,15.76]
[1746619720852,163.7,147.69,147.61,15.76]
[1746619721053,23.40393916,147.68,147.61,15.76]
[1746619721768,30.17533677,147.68,147.61,22.53457619]
[1746619722471,6.77139761,147.68,147.61,15.76]
[1746619722774,23.40393916,147.64,147.61,15.76]
[1746619723160,23.40393916,147.63,147.61,15.76]
[1746619723350,8.2731,147.65,147.61,15.76]
[1746619723551,23.40393916,147.64,147.57,22.57628306]
[1746619723769,23.40393916,147.63,147.57,15.8]
[1746619723969,23.40393916,147.62,147.57,15.8]
[1746619724258,23.40393916,147.61,147.57,15.8]
[1746619724450,6.77552679,147.59,147.55,15.8]
[1746619726462,6.77552679,147.59,147.55,22.57733738]
[1746619727274,30.17921233,147.6,147.55,22.57733738]
[1746619727471,6.77527317,147.6,147.55,22.57733738]
[1746619727679,30.17853675,147.62,147.55,22.57733738]
[1746619727859,30.17782134,147.63,147.56,18.64964886]
[1746619728058,6.77388218,147.63,147.56,18.64964886]
[1746619728677,6.77388218,147.63,147.57,6.77644507]
[1746619729054,167.87736037,147.64,147.57,6.77644507]
[1746619729255,6.77342121,147.64,147.57,6.77644507]
[1746619729578,30.17736037,147.64,147.57,6.77644507]
[1746619729773,6.77342121,147.64,147.57,6.77644507]
[1746619729975,15.04606725,147.65,147.57,6.77644507]
[1746619730278,15.04606725,147.65,147.58,18.64964886]
[1746619731489,15.04606725,147.65,147.59,6.77552679]
[1746619731689,30.17644531,147.66,147.6,15.8]
[1746619732583,30.17579532,147.67,147.6,22.57471523]
[1746619733982,30.1766477,147.66,147.6,22.57471523]
[1746619734478,23.40393916,147.65,147.6,15.8]
[1746619734681,23.40393916,147.64,147.6,15.8]
[1746619735292,23.40393916,147.63,147.6,15.8]
[1746619735496,23.40393916,147.62,147.56,22.5767162]
[1746619735991,23.40393916,147.61,147.56,15.8]
[1746619736197,23.40393916,147.6,147.56,15.8]
[1746619738097,23.42236604,147.6,147.56,39.22236604]
[1746619738395,6.77414984,147.62,147.56,39.22236604]
[1746619738597,23.42236604,147.61,147.57,23.42236604]
[1746619738772,23.42236604,147.61,147.56,39.22236604]
[1746619739470,23.42236604,147.6,147.56,15.8]
[1746619739698,23.42236604,147.58,147.56,15.8]
[1746619740075,23.42236604,147.59,147.56,15.8]
[1746619740393,23.42236604,147.57,147.56,15.8]
[1746619740579,23.71113067,147.61,147.56,15.8]
[1746619740781,23.42236604,147.57,147.56,15.8]
[1746619741897,6.77460876,147.61,147.56,15.8]
[1746619742100,178.05662418,147.63,147.56,15.8]
[1746619742101,23.42236604,147.58,147.56,15.8]
[1746619745101,23.42236604,147.59,147.56,15.8]
[1746619746521,6.77460876,147.61,147.56,39.22236604]
[1746619746897,144.47410897,147.63,147.59,23.42236604]
[1746619747114,6.77410897,147.63,147.59,23.42236604]
[1746619747291,6.77410897,147.63,147.6,23.42236604]
[1746619748308,6.77410897,147.63,147.59,23.42236604]
[1746619749791,30.19647501,147.63,147.59,23.42236604]
[1746619750209,23.42236604,147.62,147.58,23.42236604]
[1746619750410,23.42236604,147.62,147.57,6.77637001]
[1746619750612,23.42236604,147.62,147.58,23.42236604]
[1746619751408,30.19682599,147.62,147.58,23.42236604]
[1746619751722,6.77445995,147.62,147.58,23.42236604]
[1746619752010,30.19682599,147.62,147.58,23.42236604]
[1746619753715,23.42236604,147.61,147.57,23.42236604]
[1746619756230,23.42236604,147.59,147.56,15.8]
[1746619756393,6.77369098,147.63,147.57,23.42236604]
[1746619756715,6.77369098,147.63,147.59,23.42236604]
[1746619757210,30.19605702,147.63,147.59,23.42236604]
[1746619758996,23.42236604,147.62,147.58,23.42236604]
[1746619760209,30.19651623,147.62,147.58,30.19835169]
[1746619760410,6.77415019,147.62,147.58,30.19835169]
[1746619760915,6.77415019,147.62,147.58,23.42236604]
[1746619761410,30.19651623,147.62,147.58,23.42236604]
[1746619761712,30.19651623,147.62,147.56,15.8]
[1746619761713,23.42236604,147.6,147.56,15.8]
[1746619762097,23.42236604,147.6,147.56,39.22236604]
[1746619762318,30.1978717,147.6,147.56,39.22236604]
[1746619763724,23.42236604,147.6,147.56,45.99919834]
[1746619764218,23.42236604,147.61,147.57,23.42236604]
[1746619764401,30.19673688,147.62,147.57,30.1983894]
[1746619764813,23.42236604,147.61,147.57,30.1983894]
[1746619765609,23.42236604,147.59,147.56,15.8]
[1746619766596,23.42236604,147.6,147.56,15.8]
[1746619767425,23.42236604,147.57,147.53,49.42236604]
[1746619768524,30.19793285,147.59,147.54,23.42236604]
[1746619769049,23.42236604,147.59,147.54,23.42236604]
[1746619769234,30.19754109,147.6,147.55,23.42236604]
[1746619769616,137.7,147.63,147.57,23.42236604]
[1746619769812,7.7576,147.64,147.58,23.42236604]
[1746619770007,23.42236604,147.63,147.59,23.42236604]
[1746619770829,30.19619256,147.63,147.59,30.19788821]
[1746619771129,30.19619256,147.63,147.59,23.42236604]
[1746619771930,6.77382652,147.63,147.59,23.42236604]
[1746619772129,30.19619256,147.63,147.59,23.42236604]
[1746619772833,23.42236604,147.62,147.58,23.42236604]
[1746619773417,23.42236604,147.62,147.57,23.42236604]
[1746619774446,23.42236604,147.59,147.55,15.84]
[1746619775244,30.19830666,147.59,147.55,39.26236604]
[1746619775539,30.19830666,147.59,147.55,15.84]
[1746619775742,30.19830666,147.59,147.55,39.26236604]
[1746619777045,30.19830666,147.59,147.55,15.84]
[1746619777242,30.19830666,147.59,147.55,39.26236604]
[1746619778547,30.19830666,147.59,147.55,15.84]
[1746619780743,30.19830666,147.59,147.55,39.26236604]
[1746619784947,6.77594062,147.59,147.56,23.42236604]
[1746619786350,6.77594062,147.59,147.55,15.84]
[1746619786647,6.77594062,147.59,147.55,39.26236604]
[1746619788849,6.77594062,147.59,147.55,23.42236604]
[1746619789650,6.77594062,147.59,147.56,23.42236604]
[1746619792255,6.77594062,147.59,147.54,6.77780562]
[1746619792549,6.77594062,147.59,147.56,23.42236604]
[1746619794653,6.77594062,147.59,147.55,23.42236604]
[1746619800461,6.77594062,147.59,147.56,23.42236604]
[1746619802456,6.77594062,147.59,147.55,23.42236604]
[1746619803159,6.77594062,147.59,147.56,23.42236604]
[1746619804238,6.77594062,147.59,147.55,23.42236604]
[1746619804441,23.42236604,147.58,147.53,15.78]
[1746619804639,23.42236604,147.58,147.54,23.42236604]
[1746619805232,23.42236604,147.58,147.53,15.78]
[1746619805439,47.13712365,147.59,147.54,23.42236604]
[1746619806669,6.77594062,147.59,147.55,23.42236604]
[1746619806966,6.77594062,147.59,147.56,23.42236604]
[1746619807656,36.72263005,147.6,147.56,23.42236604]
[1746619807861,6.77526401,147.6,147.56,23.42236604]
[1746619809463,30.19763005,147.6,147.56,23.42236604]
[1746619813871,6.77460876,147.61,147.56,23.42236604]
[1746619814045,6.77460876,147.61,147.57,23.42236604]
[1746619814967,30.1969748,147.61,147.57,23.42236604]
[1746619817680,6.77419135,147.62,147.59,23.42236604]
[1746619818181,6.77419135,147.62,147.58,23.42236604]
[1746619819078,6.77369098,147.63,147.59,23.42236604]
[1746619820781,30.19605702,147.63,147.59,23.42236604]
[1746619822183,6.77369098,147.63,147.59,23.42236604]
[1746619822668,30.19605702,147.63,147.59,23.42236604]
[1746619828295,6.77369098,147.63,147.59,23.42236604]
[1746619828494,6.77343489,147.64,147.6,23.42236604]
[1746619828684,6.77343489,147.64,147.61,23.42236604]
[1746619829804,6.77277345,147.65,147.61,23.42236604]
[1746619830094,6.77239204,147.66,147.62,23.42236604]
[1746619830306,6.77239204,147.66,147.63,23.42236604]
[1746619831406,6.77239204,147.66,147.59,6.77552679]
[1746619831703,6.77239204,147.66,147.62,23.42236604]
[1746619832701,6.77239204,147.66,147.63,23.42236604]
[1746619832877,57.46366604,147.68,147.64,23.42236604]
[1746619832878,6.7720753,147.67,147.64,23.42236604]
[1746619835406,6.7720753,147.67,147.63,23.42236604]
[1746619839715,38.23518591,147.68,147.63,30.1960529]
[1746619839898,38.23518591,147.68,147.64,23.42236604]
[1746619840090,14.81281987,147.68,147.64,23.42236604]
[1746619840511,14.81281987,147.68,147.63,6.77368686]
[1746619840697,38.23518591,147.68,147.64,23.42236604]
[1746619841006,38.23518591,147.68,147.63,23.42236604]
[1746619842110,23.42236604,147.67,147.61,6.77460876]
[1746619842311,23.42236604,147.67,147.62,23.42236604]
[1746619842808,6.77231477,147.66,147.62,23.42236604]
[1746619843706,6.77231477,147.66,147.6,6.77494805]
[1746619843914,23.42236604,147.64,147.6,6.77494805]
[1746619844412,23.42236604,147.63,147.59,8.37659584]
[1746619844596,6.77231477,147.66,147.59,31.79896188]
[1746619844795,23.42236604,147.64,147.59,31.79896188]
[1746619846104,30.19538989,147.65,147.59,31.79896188]
[1746619846289,30.19538989,147.65,147.6,23.42236604]
[1746619847318,30.19538989,147.65,147.6,30.19731523]
[1746619849520,6.77185616,147.67,147.63,23.42236604]
[1746619850028,6.77185616,147.67,147.64,23.42236604]
[1746619850206,6.77185616,147.67,147.65,23.42236604]
[1746619851422,6.77139761,147.68,147.6,25.42471661]
[1746619851633,6.77139761,147.68,147.6,107.92471661]
[1746619851822,6.77139761,147.68,147.61,18.64964886]
[1746619852028,6.77139761,147.68,147.62,15.8]
[1746619852824,6.77093912,147.69,147.63,6.77369098]
[1746619853709,6.77093912,147.69,147.62,22.57393223]
[1746619856634,23.69610612,147.71,147.63,18.64964886]
[1746619857311,6.77002234,147.71,147.63,18.64964886]
[1746619857511,6.77002234,147.71,147.62,22.57393223]
[1746619858922,23.69507819,147.71,147.62,22.57393223]
[1746619859535,57.54518989,147.71,147.62,15.8]
[1746619860234,18.64964886,147.7,147.62,15.8]
[1746619860411,26.0,147.69,147.62,15.8]
[1746619860619,26.0,147.67,147.58,15.78]
[1746619860938,8.2619,147.66,147.58,15.78]
[1746619861635,23.70470707,147.65,147.58,15.78]
[1746619862234,23.70470707,147.65,147.58,22.55597462]
[1746619863038,23.70470707,147.65,147.58,15.78]
[1746619865118,161.40470707,147.65,147.55,8.38714456]
[1746619865338,137.7,147.64,147.55,8.38714456]
[1746619865637,137.7,147.64,147.55,6.77714456]
[1746619866542,23.70791844,147.63,147.55,6.77714456]
[1746619866837,23.70791844,147.63,147.54,302.37762746]
[1746619867532,23.70791844,147.63,147.54,276.37762746]
[1746619869549,23.70791844,147.63,147.55,25.42661241]
[1746619869718,23.70791844,147.63,147.54,269.6]
[1746619869719,23.70791844,147.63,147.54,276.37752533]
[1746619872349,23.70791844,147.63,147.54,22.57752533]
[1746619873727,23.70791844,147.63,147.54,6.77752533]
[1746619875546,23.70791844,147.63,147.53,48.57811173]
[1746619875745,23.70791844,147.63,147.53,15.8]
[1746619875746,26.0,147.6,147.53,15.8]
[1746619877651,23.71434378,147.59,147.53,15.8]
[1746619882630,23.71434378,147.59,147.5,6.7795048]
[1746619882831,161.41434378,147.59,147.5,6.7795048]
[1746619884552,161.41434378,147.59,147.52,6.77874186]
[1746619884754,137.7,147.59,147.53,18.64964886]
[1746619885356,137.7,147.59,147.54,15.82]
[1746619885558,6.7752759,147.6,147.54,15.82]
[1746619887969,6.77460876,147.61,147.55,6.7773636]
[1746619890772,6.77369098,147.63,147.55,6.7773636]
[1746619893275,23.70791844,147.63,147.55,6.7773636]
[1746619893649,23.70791844,147.63,147.54,15.82]
[1746619895071,57.57637336,147.63,147.54,15.82]
[1746619895574,137.7,147.62,147.54,15.82]
[1746619898300,57.57637336,147.63,147.54,15.82]
[1746619898301,195.72923067,147.61,147.54,15.82]
[1746619898793,195.72923067,147.61,147.54,22.59779255]
[1746619899289,195.72923067,147.61,147.54,15.82]
[1746619902295,195.72923067,147.61,147.54,22.59770068]
[1746619903294,6.77369098,147.63,147.55,18.64964886]
[1746619904589,6.77369098,147.63,147.56,6.77690431]
[1746619906089,144.47345729,147.64,147.56,8.40390431]
[1746619907519,144.47345729,147.64,147.58,6.7759859]
[1746619907691,32.77293987,147.65,147.58,6.7759859]
[1746619908408,26.0,147.65,147.59,18.64964886]
[1746619908703,6.77249973,147.66,147.59,18.64964886]
[1746619908903,6.77249973,147.66,147.59,34.42964886]
[1746619909800,6.77185616,147.67,147.6,6.77506775]
[1746619910704,6.77185616,147.67,147.59,41.20496103]
[1746619912899,23.70149657,147.67,147.59,41.20496103]
[1746619913700,23.70149657,147.67,147.59,34.42964886]
[1746619914905,23.70149657,147.67,147.59,41.20504366]
[1746619916384,23.70149657,147.67,147.59,34.42964886]
[1746619916706,23.70149657,147.67,147.59,41.20514861]
[1746619918207,23.70149657,147.67,147.59,34.42964886]
[1746619918503,23.70149657,147.67,147.59,41.20512003]
[1746619920301,23.70149657,147.67,147.59,34.42964886]
[1746619921606,23.70149657,147.67,147.59,41.2051185]
[1746619923304,23.70149657,147.67,147.59,34.42964886]
[1746619923608,23.70149657,147.67,147.59,15.78]
[1746619926692,57.56077739,147.67,147.59,15.78]
[1746619926893,23.70791844,147.63,147.56,1.627]
[1746619927196,23.70791844,147.63,147.55,15.78]
[1746619927715,161.40791844,147.63,147.55,15.78]
[1746619928007,137.7,147.62,147.55,15.78]
[1746619928590,137.7,147.62,147.55,22.55735424]
[1746619928909,6.77460876,147.61,147.55,22.55735424]
[1746619929408,6.77369098,147.63,147.55,22.55735424]
[1746619931506,6.77369098,147.63,147.57,6.77644507]
[1746619932424,6.77344518,147.64,147.57,6.77644507]
[1746619937520,6.77290789,147.65,147.58,18.64964886]
[1746619939021,6.77290789,147.65,147.59,6.77552679]
[1746619939421,6.77290789,147.65,147.58,6.77578034]
[1746619940331,23.70484151,147.65,147.57,6.77628294]
[1746619940502,1.5158,147.64,147.55,22.55713944]
[1746619940820,139.2158,147.64,147.55,15.78]
[1746619941227,23.70791844,147.63,147.55,15.78]
[1746619942022,137.7,147.62,147.55,15.78]
[1746619945525,23.71113067,147.61,147.55,15.78]
[1746619946619,6.6295,147.6,147.55,15.78]
[1746619947010,6.6295,147.6,147.52,6.77846179]
[1746619949325,6.77552679,147.59,147.52,6.77846179]
[1746619958239,6.77552679,147.59,147.53,6.7778604]
[1746619959636,6.77460876,147.61,147.53,6.7778604]
[1746619960471,6.77460876,147.61,147.54,1.546]
[1746619961038,6.77460876,147.61,147.55,15.78]
[1746619962939,23.71113067,147.61,147.55,15.78]
[1746619968820,23.71113067,147.61,147.51,41.78]
[1746619969321,23.71113067,147.61,147.51,15.78]
[1746619969845,23.71113067,147.61,147.52,6.77866437]
[1746619974439,23.71434378,147.59,147.51,22.55913647]
[1746619975947,6.77552679,147.59,147.52,18.64964886]
[1746619976746,6.77552679,147.59,147.52,34.40964886]
[1746619977151,6.77552679,147.59,147.52,41.18799242]
[1746619981659,23.71434378,147.59,147.52,34.40964886]
[1746619982154,6.77552679,147.59,147.52,41.18820955]
[1746619983154,23.70807025,147.63,147.56,18.64964886]
[1746619983361,6.77369098,147.63,147.56,18.64964886]
[1746619983557,6.77369098,147.63,147.57,15.76]
[1746619984547,32.77369098,147.63,147.57,15.76]
[1746619984864,32.77369098,147.63,147.54,18.64964886]
[1746619985359,49.70791844,147.63,147.54,25.42728635]
[1746619985663,26.0,147.6,147.53,15.76]
[1746619987460,23.71434378,147.59,147.53,15.76]
[1746619988263,23.71434378,147.59,147.53,22.53826737]
[1746619989262,23.71434378,147.59,147.53,15.76]
[1746619991158,6.77552679,147.59,147.53,22.53804953]
[1746619996267,6.77552679,147.59,147.53,15.76]
[1746619998364,6.77552679,147.59,147.53,22.53822494]
[1746619998745,32.77525155,147.6,147.54,18.64964886]
[1746619999559,32.77525155,147.6,147.54,20.17354886]
[1746619999769,32.77525155,147.6,147.55,6.7773636]
[1746620004267,32.77525155,147.6,147.53,15.76]
[1746620004982,49.71292092,147.6,147.53,15.76]
[1746620007385,6.77525155,147.6,147.54,18.64964886]
[1746620007678,6.77480198,147.61,147.54,18.64964886]
[1746620010180,6.77414984,147.62,147.55,6.7773636]
[1746620013011,26.0,147.58,147.49,10.61544399]
[1746620013292,26.0,147.58,147.5,18.64964886]
[1746620013785,6.77644507,147.57,147.5,18.64964886]
[1746620014161,23.71755776,147.57,147.49,10.61544399]
[1746620015384,23.71755776,147.57,147.48,101.14964886]
[1746620016688,23.71755776,147.57,147.48,18.64964886]
[1746620024607,26.0,147.54,147.47,17.47681]
[1746620025709,6.77828238,147.53,147.47,15.94781]
[1746620029104,25.32548833,147.53,147.47,15.94781]
[1746620029409,25.32548833,147.53,147.47,0.06781]
[1746620036907,8.37978238,147.53,147.47,0.06781]
[1746620041913,25.32548833,147.53,147.47,0.06781]
[1746620044922,6.77828238,147.53,147.47,0.06781]
[1746620047911,23.72398833,147.53,147.47,0.06781]
[1746620049215,26.0,147.5,147.47,0.06781]
[1746620051321,6.78012068,147.49,147.47,0.06781]
[1746620060909,12.97452068,147.49,147.47,0.06781]
[1746620063730,150.67452068,147.49,147.47,0.06781]
[1746620065436,163.7,147.48,147.47,0.06781]
[1746620066534,170.48058041,147.48,147.47,0.06781]
[1746620068339,144.48058041,147.48,147.47,0.06781]
[1746620070844,170.48058041,147.48,147.47,0.06781]
[1746620071642,144.48058041,147.48,147.47,0.06781]
[1746620071947,146.09758041,147.48,147.47,0.06781]
[1746620072948,8.39758041,147.48,147.47,0.06781]
[1746620074347,8.39758041,147.48,147.47,1e-08]
[1746620076251,16.51897478,147.48,147.47,1e-08]
[1746620094045,6.78058041,147.48,147.47,1e-08]
[1746620095478,14.90197478,147.48,147.47,1e-08]
[1746620095973,26.0,147.45,147.39,7.04545455]
[1746620096150,26.0,147.44,147.39,7.04545455]
[1746620096472,12.78517024,147.44,147.39,7.04545455]
[1746620099174,26.0,147.41,147.39,7.04545455]
[1746620099980,137.7,147.4,147.39,7.04545455]
[1746620101073,144.48426051,147.4,147.39,7.04545455]
[1746620102456,6.78426051,147.4,147.39,7.04545455]
[1746620104077,26.0,147.41,147.39,7.04545455]
[1746620105062,6.78426051,147.4,147.39,7.04545455]
[1746620107286,26.0,147.4,147.39,7.04545455]
[1746620111588,32.78426051,147.4,147.39,7.04545455]
[1746620138609,6.78426051,147.4,147.39,7.04545455]
[1746620139002,32.78426051,147.4,147.39,7.04545455]
[1746620139206,6.78426051,147.4,147.39,7.04545455]
[1746620139406,32.78426051,147.4,147.39,7.04545455]
[1746620139606,6.78426051,147.4,147.39,7.04545455]
[1746620139921,32.78426051,147.4,147.39,7.04545455]
[1746620140722,6.78426051,147.4,147.39,7.04545455]
[1746620141223,32.78426051,147.4,147.39,7.04545455]
[1746620145706,8.43116051,147.4,147.39,7.04545455]
[1746620145909,26.0,147.36,147.32,8.40909091]
[1746620146213,26.0,147.33,147.32,8.40909091]
[1746620146594,33.02475382,147.33,147.32,8.40909091]
[1746620147615,39.81223769,147.33,147.32,8.40909091]
[1746620149512,49.91584851,147.33,147.32,8.40909091]
[1746620153427,39.81223769,147.33,147.32,8.40909091]
[1746620157322,50.0466733,147.33,147.32,8.40909091]
[1746620158830,32.78748387,147.33,147.32,8.40909091]
[1746620159016,6.78748387,147.33,147.32,8.40909091]
[1746620162833,6.78748387,147.33,147.32,8.35033855]
[1746620165534,23.75326985,147.35,147.32,8.35033855]
[1746620167532,6.7865626,147.35,147.32,8.35033855]